fUSD/lending_fUSD_20240119
["ID","MTS","AMOUNT","RATE_DAILY","PERIOD"]
[312125652,1705653043514,-500.0,0.00027799,2]
[312125653,1705653043524,-500.0,0.00027799,2]
[312125654,1705653043532,-500.0,0.00027799,2]
[312125655,1705653043541,-500.0,0.00027799,2]
[312125656,1705653043550,-500.0,0.00027799,2]
[312125657,1705653043559,-500.0,0.00027799,2]
[312125658,1705653043568,-500.0,0.00027799,2]
[312125659,1705653043577,-500.0,0.00027799,2]
[312125660,1705653043586,-500.0,0.00027799,2]
[312125661,1705653043595,-500.0,0.00027799,2]
[312125662,1705653043604,-500.0,0.00027799,2]
[312125663,1705653043613,-500.0,0.00027799,2]
[312125664,1705653043622,-500.0,0.00027799,2]
[312125665,1705653043631,-500.0,0.00027799,2]
[312125666,1705653043640,-500.0,0.00027799,2]
[312125667,1705653043649,-500.0,0.00027799,2]
[312125668,1705653043658,-500.0,0.00027799,2]
[312125669,1705653043667,-500.0,0.00027799,2]
[312125670,1705653043677,-500.0,0.00027799,2]
[312125671,1705653043685,-500.0,0.00027799,2]
[312125672,1705653043694,-500.0,0.00027799,2]
[312125673,1705653043703,-500.0,0.00027799,2]
[312125674,1705653043712,-500.0,0.00027799,2]
[312125675,1705653043721,-500.0,0.00027799,2]
[312125676,1705653043730,-500.0,0.00027799,2]
[312125677,1705653043739,-500.0,0.00027799,2]
[312125678,1705653043748,-500.0,0.00027799,2]
[312125679,1705653043757,-500.0,0.00027799,2]
[312125680,1705653043766,-500.0,0.00027799,2]
[312125681,1705653043775,-500.0,0.00027799,2]
[312125682,1705653043784,-500.0,0.00027799,2]
[312125683,1705653043793,-500.0,0.00027799,2]
[312125684,1705653043802,-500.0,0.00027799,2]
[312125685,1705653043811,-500.0,0.00027799,2]
[312125686,1705653043820,-500.0,0.00027799,2]
[312125687,1705653043829,-500.0,0.00027799,2]
[312125688,1705653043838,-500.0,0.00027799,2]
[312125689,1705653043847,-500.0,0.00027799,2]
[312125690,1705653043856,-500.0,0.00027799,2]
[312125691,1705653043865,-500.0,0.00027799,2]
[312125692,1705653043875,-500.0,0.00027799,2]
[312125693,1705653043884,-500.0,0.00027799,2]
[312125694,1705653043893,-500.0,0.00027799,2]
[312125695,1705653043902,-500.0,0.00027799,2]
[312125696,1705653043911,-500.0,0.00027799,2]
[312125697,1705653043921,-500.0,0.00027799,2]
[312125698,1705653043930,-7515.49248177,0.00027807,2]
[312125699,1705653043939,-2053.0,0.00027927,5]
[312125700,1705653043949,-200.0,0.00027945,5]
[312125701,1705653043958,-929.34436591,0.00028,2]
[312125702,1705653043967,-203.09146154,0.00028,2]
[312125703,1705653043977,-688.92857397,0.00028,2]
[312125704,1705653043987,-22221.99970979,0.00028,2]
[312125705,1705653043996,-700.0,0.00028,3]
[312125706,1705653044007,-1000.0,0.00028026,2]
[312125707,1705653044016,-322.90099813,0.00028026,2]
[312125708,1705653044025,-150.01,0.0002811,2]
[312125709,1705653044034,-154.57593043,0.00028128,2]
[312125710,1705653044044,-167.0,0.00028307,2]
[312125711,1705653044053,-157.22,0.00028376,2]
[312125712,1705653044062,-1009.9934982,0.00028428,2]
[312125713,1705653044074,-7999.99,0.00028428,6]
[312125714,1705653044083,-1123.22905747,0.00028433,2]
[312125715,1705653044092,-150.01,0.00028466,2]
[312125716,1705653044103,-157.34,0.00028469,2]
[312125717,1705653044114,-200.0,0.00028493,5]
[312125718,1705653044123,-157.78,0.00028564,2]
[312125719,1705653044131,-157.16,0.00028589,2]
[312125720,1705653044141,-7515.49248177,0.00028626,2]
[312125721,1705653044151,-205.0,0.00028676,11]
[312125722,1705653044161,-840.0,0.00028716,2]
[312125723,1705653044170,-323.2,0.00028719,2]
[312125724,1705653044179,-1709.05,0.00028767,2]
[312125725,1705653044188,-1000.0,0.00028767,2]
[312125726,1705653044197,-1000.0,0.00028767,2]
[312125727,1705653044206,-1000.0,0.00028767,2]
[312125728,1705653044215,-1000.0,0.00028767,2]
[312125729,1705653044225,-1000.0,0.00028767,2]
[312125730,1705653044234,-1000.0,0.00028767,2]
[312125731,1705653044244,-1000.0,0.00028767,2]
[312125732,1705653044253,-1000.0,0.00028767,2]
[312125733,1705653044263,-1000.0,0.00028767,2]
[312125734,1705653044272,-1000.0,0.00028767,2]
[312125735,1705653044281,-571.4708759,0.00028767,2]
[312125736,1705653044290,-155.0,0.00028767,2]
[312125737,1705653044300,-7770.0,0.000288,2]
[312125738,1705653044309,-150.01,0.00028822,2]
[312125739,1705653044319,-1993.44870767,0.00028988,4]
[312125740,1705653044328,-314.29279683,0.00029,2]
[312125741,1705653044337,-325.20026508,0.00029,2]
[312125742,1705653044347,-325.20026508,0.00029,2]
[312125743,1705653044356,-325.20026508,0.00029,2]
[312125744,1705653044366,-325.20026508,0.00029,2]
[312125745,1705653044375,-325.20026508,0.00029,2]
[312125746,1705653044385,-325.20026508,0.00029,2]
[312125747,1705653044394,-325.20026508,0.00029,2]
[312125748,1705653044404,-325.20026508,0.00029,2]
[312125749,1705653044413,-325.20026508,0.00029,2]
[312125750,1705653044422,-325.20026508,0.00029,2]
[312125751,1705653044431,-325.20026508,0.00029,2]
[312125752,1705653044441,-325.20026508,0.00029,2]
[312125753,1705653044450,-325.20026508,0.00029,2]
[312125754,1705653044459,-325.20026508,0.00029,2]
[312125755,1705653044469,-325.20026508,0.00029,2]
[312125756,1705653044478,-325.20026508,0.00029,2]
[312125757,1705653044487,-325.20026508,0.00029,2]
[312125758,1705653044496,-325.20026508,0.00029,2]
[312125759,1705653044506,-325.20026508,0.00029,2]
[312125760,1705653044515,-325.20026508,0.00029,2]
[312125761,1705653044525,-325.20026508,0.00029,2]
[312125762,1705653044535,-325.20026508,0.00029,2]
[312125763,1705653044545,-325.20026508,0.00029,2]
[312125764,1705653044554,-325.20026508,0.00029,2]
[312125765,1705653044564,-325.20026508,0.00029,2]
[312125766,1705653044573,-325.20026508,0.00029,2]
[312125767,1705653044583,-325.20026508,0.00029,2]
[312125768,1705653044592,-325.20026508,0.00029,2]
[312125769,1705653044601,-325.20026508,0.00029,2]
[312125770,1705653044610,-325.20026508,0.00029,2]
[312125771,1705653044619,-325.20026508,0.00029,2]
[312125772,1705653044629,-325.20026508,0.00029,2]
[312125773,1705653044638,-325.20026508,0.00029,2]
[312125774,1705653044648,-325.20026508,0.00029,2]
[312125775,1705653044657,-325.20026508,0.00029,2]
[312125776,1705653044666,-325.20026508,0.00029,2]
[312125777,1705653044676,-325.20026508,0.00029,2]
[312125778,1705653044685,-325.20026508,0.00029,2]
[312125779,1705653044695,-325.20026508,0.00029,2]
[312125780,1705653044704,-325.20026508,0.00029,2]
[312125781,1705653044714,-325.20026508,0.00029,2]
[312125782,1705653044723,-325.20026508,0.00029,2]
[312125783,1705653044732,-325.20026508,0.00029,2]
[312125784,1705653044742,-325.20026508,0.00029,2]
[312125785,1705653044751,-325.20026508,0.00029,2]
[312125786,1705653044760,-325.20026508,0.00029,2]
[312125787,1705653044770,-325.20026508,0.00029,2]
[312125788,1705653044779,-325.20026508,0.00029,2]
[312125789,1705653044789,-325.20026508,0.00029,2]
[312125790,1705653044798,-325.20026508,0.00029,2]
[312125791,1705653044808,-365.9119329,0.00029013,2]
[312125792,1705653044817,-2544.15825343,0.00029013,2]
[312125793,1705653044826,-354.44429429,0.00029041,5]
[312125794,1705653044835,-153.73,0.00029207,2]
[312125795,1705653044845,-200.3099297,0.00029209,2]
[312125796,1705653044856,-536.88253821,0.00029223,2]
[312125797,1705653044866,-157.22,0.00029354,2]
[312125798,1705653044877,-2053.0,0.00029396,5]
[312125799,1705653044887,-184.76,0.00029416,2]
[312125800,1705653044897,-154.57593043,0.00029436,2]
[312125801,1705653044906,-7515.49248177,0.00029444,2]
[312125802,1705653044916,-155.0,0.000295,3]
[312125803,1705653044925,-155.0,0.00029501,2]
[312125804,1705653044934,-150.0,0.00029501,2]
[312125805,1705653044943,-508.90507024,0.00029501,2]
[312125806,1705653044953,-200.0,0.00029501,2]
[312125807,1705653044963,-2000.0,0.00029501,2]
[312125808,1705653044972,-200.0,0.00029501,2]
[312125809,1705653044982,-4008.29333289,0.00029501,2]
[312125810,1705653044992,-323.2,0.00029697,2]
[312125811,1705653045001,-4908.32082205,0.000297,2]
[312125812,1705653045011,-168.0,0.000297,2]
[312125813,1705653045021,-154.0,0.000297,2]
[312125814,1705653045030,-175.53477605,0.000298,2]
[312125815,1705653045040,-731.00118582,0.000298,2]
[312125816,1705653045050,-200.0,0.00029858,2]
[312125817,1705653045060,-227.20890437,0.000299,2]
[312125818,1705653045070,-155.98,0.00029954,2]
[312125819,1705653045082,-400.0,0.0002997,2]
[312125820,1705653045092,-148862.15462871,0.0002998,2]
[312125821,1705653045101,-150.0,0.00029999,2]
[312125822,1705653045110,-150.0,0.00029999,2]
[312125823,1705653045119,-71760.48781137,0.0003,2]
[312125824,1705653045137,-3807.05788132,0.0003,2]
[312125825,1705653045149,-4124.65,0.0003,2]
[312125826,1705653045175,-207.68214018,0.00026,2]
[312125827,1705653045185,-157.066317,0.0002888,2]
[312125828,1705653045195,-8343.20682235,0.0003,2]
[312125829,1705653045206,-312.52309554,0.0003,2]
[312125830,1705653045217,-511.79085552,0.0003,2]
[312125831,1705653045229,-544.38170658,0.0003,2]
[312125832,1705653045276,-3946.44737005,0.0003,2]
[312125833,1705653045288,-6649.45445727,0.0003,2]
[312125834,1705653045298,-776.92418427,0.0003,4]
[312125835,1705653045307,-196.61928647,0.0003,2]
[312125836,1705653045316,-929.77209823,0.0003,4]
[312125837,1705653045328,-1623.21430097,0.0003,4]
[312125838,1705653045338,-309.88993385,0.0003,4]
[312125839,1705653045347,-9066.89576518,0.0003,4]
[312125840,1705653045359,-4500.0,0.0003,4]
[312125841,1705653045370,-553.01657252,0.0003,4]
[312125844,1705653045467,-207.68214018,0.00026,2]
[312125845,1705653045477,-12554.91340452,0.0003,4]
[312125846,1705653045487,-7250.20474999,0.0003,4]
[312125847,1705653045496,-1806.73038291,0.0003,4]
[312125848,1705653045505,-582.6484227,0.0003,2]
[312125849,1705653045514,-155.0,0.0003,4]
[312125850,1705653045524,-308.61065204,0.0003,7]
[312125851,1705653045533,-155.0,0.0003,2]
[312125852,1705653045542,-257.89401163,0.0003,2]
[312125853,1705653045551,-523.68952343,0.0003,4]
[312125854,1705653045561,-361.90503468,0.0003,4]
[312125855,1705653045570,-691.92895757,0.0003,2]
[312125856,1705653045579,-6874.56334355,0.0003,4]
[312125857,1705653045588,-369.23925738,0.0003,4]
[312125858,1705653045598,-9639.56910486,0.0003,2]
[312125859,1705653045607,-25714.72875055,0.0003,4]
[312125860,1705653045619,-13726.92838059,0.0003,4]
[312125861,1705653045647,-23807.43355367,0.0003,4]
[312125862,1705653045658,-715.89288,0.0003,4]
[312125863,1705653045670,-395.2299961,0.0003,4]
[312125864,1705653045681,-360.17460302,0.0003,4]
[312125865,1705653045709,-207.68214018,0.00026,2]
[312125866,1705653045718,-6859.23316414,0.0003,4]
[312125867,1705653045887,-398.73535138,0.0003,4]
[312125868,1705653045899,-534.74222007,0.0003,4]
[312125872,1705653046507,-271.08668605,0.00022398,2]
[312125873,1705653046517,-207.68214018,0.00026,2]
[312125874,1705653046526,-207.68214018,0.00026,2]
[312125875,1705653046535,-207.68214018,0.00026,2]
[312125876,1705653046545,-3488.09898984,0.0003,4]
[312125877,1705653046556,-1104.43424814,0.0003,4]
[312125878,1705653046571,-19521.45362892,0.0003,4]
[312125879,1705653046591,-8281.83619993,0.0003,4]
[312125880,1705653046602,-3711.57325129,0.0003,4]
[312125881,1705653046613,-651.08162608,0.0003,4]
[312125882,1705653046627,-10181.24615483,0.0003,4]
[312125883,1705653046640,-20391.5678241,0.0003,4]
[312125884,1705653046651,-555.900003,0.0003,4]
[312125885,1705653046663,-287.27274001,0.0003,4]
[312125887,1705653046949,-145216.05010264,0.0003,4]
[312125888,1705653046961,-598.01165468,0.0003,4]
[312125889,1705653046972,-1636.38332143,0.0003,4]
[312125890,1705653046999,-824.1117,0.0003,4]
[312125891,1705653047012,-1546.59130599,0.0003,4]
[312125892,1705653047023,-551.45936331,0.0003,4]
[312125893,1705653047035,-855.30664726,0.0003,4]
[312125894,1705653047046,-532.20015401,0.0003,4]
[312125895,1705653047057,-250.5,0.0003,4]
[312125896,1705653047119,-272.44258227,0.0003,4]
[312125897,1705653047131,-259.41654144,0.0003,4]
[312125898,1705653047142,-558.59855038,0.0003,4]
[312125899,1705653047157,-5610.39032302,0.0003,4]
[312125900,1705653047185,-1705.31673495,0.0003,4]
[312125901,1705653047198,-703.49776369,0.0003,4]
[312125902,1705653047210,-381.19675957,0.0003,4]
[312125903,1705653047222,-514.06877968,0.0003,4]
[312125904,1705653047806,-6221.78557699,0.0003,4]
[312125905,1705653047817,-2163.11676285,0.0003,4]
[312125906,1705653047828,-53337.53499838,0.0003,4]
[312125907,1705653047837,-6242.82,0.0003,2]
[312125908,1705653047846,-750.0,0.0003,3]
[312125909,1705653047855,-450.9877449,0.0003,2]
[312125910,1705653047865,-152.05408235,0.0003,8]
[312125911,1705653047876,-152.05408235,0.0003,9]
[312125912,1705653047885,-152.05408235,0.0003,9]
[312125913,1705653047895,-152.05408235,0.0003,12]
[312125914,1705653047905,-152.05408235,0.0003,10]
[312125915,1705653047914,-152.05408235,0.0003,8]
[312125916,1705653047923,-152.05408235,0.0003,8]
[312125917,1705653047933,-152.05408235,0.0003,11]
[312125918,1705653047943,-152.05408235,0.0003,8]
[312125919,1705653047952,-152.05408235,0.0003,9]
[312125920,1705653047961,-152.05408235,0.0003,12]
[312125921,1705653047970,-152.05408235,0.0003,12]
[312125922,1705653047980,-152.05408235,0.0003,10]
[312125923,1705653047989,-152.05408235,0.0003,12]
[312125924,1705653047998,-152.05408235,0.0003,9]
[312125925,1705653048007,-152.05408235,0.0003,9]
[312125926,1705653048016,-158.32,0.0003,2]
[312125927,1705653048026,-12191.573781,0.0003,4]
[312125928,1705653048036,-31613.129982,0.0003,2]
[312125929,1705653048045,-1200.0,0.0003,2]
[312125930,1705653048055,-200.0,0.0003,2]
[312125931,1705653048064,-10860.0,0.0003,5]
[312125932,1705653048076,-151.0,0.0003,2]
[312125933,1705653048089,-3000.0,0.0003,2]
[312125934,1705653048099,-1000.0,0.0003,2]
[312125935,1705653048108,-252.27819338,0.000301,4]
[312125936,1705653048117,-750.0,0.000301,2]
[312125937,1705653048128,-7770.08319596,0.000301,2]
[312125938,1705653048137,-151.0,0.00030103,30]
[312125939,1705653048146,-1709.05,0.00030136,2]
[312125940,1705653048155,-153.84,0.00030137,2]
[312125941,1705653048164,-155.0,0.00030137,2]
[312125942,1705653048173,-7515.49248177,0.00030263,2]
[312125943,1705653048182,-157.22,0.00030333,2]
[312125944,1705653048193,-500.0,0.00030421,2]
[312125945,1705653048202,-200.0,0.00030421,2]
[312125946,1705653048361,-1993.44870767,0.00030444,5]
[312125947,1705653048380,-323.2,0.00030676,2]
[312125948,1705653048389,-151.0,0.00030717,7]
[312125949,1705653048400,-154.57593043,0.00030744,2]
[312125950,1705653048409,-168.0,0.000308,2]
[312125951,1705653048418,-157.16,0.00030853,2]
[312125952,1705653048427,-2053.0,0.00030943,5]
[312125953,1705653048435,-100000.0,0.00031,3]
[312125954,1705653048444,-214.45069329,0.00031,4]
[312125955,1705653048453,-20000.0,0.00031,2]
[312125956,1705653048462,-153.84,0.0003105,2]
[312125957,1705653048471,-7515.49248177,0.00031081,2]
[312125958,1705653048480,-157.22,0.00031311,2]
[312125959,1705653048489,-840.0,0.00031326,2]
[312125960,1705653048499,-151.0,0.00031344,4]
[312125961,1705653048508,-184.76,0.00031435,2]
[312125962,1705653048517,-1000.0,0.000315,2]
[312125963,1705653048526,-619.8326151,0.000315,2]
[312125964,1705653048535,-1709.05,0.00031506,2]
[312125965,1705653048544,-409.51,0.00031507,2]
[312125966,1705653048554,-155.0,0.00031507,2]
[312125967,1705653048562,-197.62,0.00031644,2]
[312125968,1705653048572,-157.59,0.00031652,2]
[312125969,1705653048581,-323.2,0.00031654,2]
[312125970,1705653048590,-104009.38472261,0.000318,3]
[312125971,1705653049153,-312776.25132439,0.000318,3]
[312125972,1705653049165,-205.0,0.00031809,16]
[312125973,1705653049176,-5000.0,0.0003189,2]
[312125974,1705653049186,-168.0,0.000319,2]
[312125975,1705653049196,-7515.49248177,0.000319,3]
[312125976,1705653049206,-1993.44870767,0.000319,5]
[312125977,1705653049218,-153.84,0.00031963,2]
[312125978,1705653049227,-151.0,0.00031984,2]
[312125979,1705653049237,-200.0,0.0003199,7]
[312125980,1705653049247,-210.07300978,0.0003199,7]
[312125981,1705653049256,-200.0,0.0003199,7]
[312125982,1705653049267,-200.0,0.0003199,7]
[312125983,1705653049278,-193.45390232,0.00031998,4]
[312125984,1705653049289,-874.93955406,0.00031998,4]
[312125985,1705653049300,-305.17766269,0.00031998,4]
[312125986,1705653049310,-160.05458774,0.00031999,2]
[312125987,1705653049320,-150.0,0.00031999,2]
[312125988,1705653049331,-150.0,0.00031999,2]
[312125989,1705653049341,-100000.0,0.00032,3]
[312125990,1705653049352,-11668.45992743,0.00032,2]
[312125991,1705653049362,-272954.3644265,0.00032,7]
[312125992,1705653049410,-9440.13693686,0.00032,7]
[312125993,1705653049435,-42834.45552623,0.00032,7]
[312125994,1705653049446,-27097.55655722,0.00032,7]
[312125995,1705653049457,-2283.72463295,0.00032,7]
[312125996,1705653049617,-7496.03342653,0.00032,7]
[312125997,1705653050524,-344.43500834,0.00021709,2]
[312125998,1705653050536,-6892.22023309,0.00021709,2]
[312125999,1705653266862,-1050.59392633,0.00021606,2]
[312126000,1705653266886,-735.03279687,0.00021607,2]
[312126001,1705653267163,-4349.3732768,0.00021609,2]
[312126003,1705653325499,-159.85802281,0.00021509,2]
[312126004,1705653325520,-35840.14197719,0.00021609,2]
[312126005,1705653368777,205.0,0.00021412,2]
[312126007,1705653656722,150.0,0.00020609,2]
[312126008,1705653658113,150.0,0.00021157,2]
[312126039,1705654232217,-159.85802281,0.00021509,2]
[312126040,1705654232244,-147.79141689,0.00021606,2]
[312126044,1705654233078,-902.80250944,0.00021606,2]
[312126045,1705654233099,-150.0,0.00021607,2]
[312126047,1705654233119,-284.46902432,0.00021607,2]
[312126049,1705654233139,-11383.22846624,0.00021608,2]
[312126053,1705654233425,-433.3649623,0.00021608,2]
[312126057,1705654233488,-1715.65806964,0.00021608,2]
[312126069,1705654238335,-408.21030181,0.00021606,2]
[312126070,1705654238360,-6796.90879457,0.00021608,2]
[312126071,1705654238375,-57088.0872,0.00021609,2]
[312126072,1705654238399,-251.2161,0.00021609,2]
[312126073,1705654238430,-150.0,0.00021671,2]
[312126074,1705654238448,-2544.15825343,0.00021709,2]
[312126075,1705654238473,-365.9119329,0.00021709,2]
[312126076,1705654238495,-536.88253821,0.00021709,2]
[312126077,1705654238520,-92763.34475857,0.00021709,2]
[312126078,1705654238542,-19133.17801413,0.000218,2]
[312126079,1705654238556,-786.78,0.000218,2]
[312126080,1705654238572,-499.99,0.000218,2]
[312126081,1705654238604,-154.90667778,0.000219,2]
[312126082,1705654238626,-250.0,0.000219,2]
[312126083,1705654238643,-5000.0,0.0002195,2]
[312126084,1705654238669,-1979.04,0.0002195,2]
[312126090,1705654239207,-550.0,0.00022,3]
[312126107,1705654239649,-154.90667774,0.00022554,2]
[312126112,1705654239672,-155.0,0.00022701,2]
[312126117,1705654239702,-160.0,0.00022766,2]
[312126124,1705654239730,-4321.7911,0.00022794,2]
[312126127,1705654239754,-500.0,0.000229,2]
[312126131,1705654239782,-157.43,0.00022976,2]
[312126133,1705654239799,-205.0,0.0002327,2]
[312126135,1705654239821,-154.90667774,0.00023408,2]
[312126138,1705654239846,-201.16205573,0.00024,2]
[312126139,1705654239861,-431.59040182,0.00024,2]
[312126141,1705654239883,-155.49650287,0.00024,2]
[312126143,1705654239904,-600.0,0.00024,3]
[312126146,1705654239936,-154.90667774,0.00024262,2]
[312126148,1705654239957,-500.0,0.00024499,2]
[312126150,1705654239985,-26855.10215803,0.000245,2]
[312126152,1705654240008,-3581.89784197,0.000245,2]
[312126155,1705654240028,-3291.0,0.000245,2]
[312126157,1705654240049,-836.0,0.00024679,2]
[312126158,1705654240071,-1233.0,0.00024679,2]
[312126160,1705654240090,-1250.0,0.00024679,2]
[312126162,1705654240109,-319.945,0.00024679,2]
[312126164,1705654240126,-426.0,0.00024679,2]
[312126166,1705654240146,-265.538,0.00024679,2]
[312126168,1705654240163,-2274.0,0.00024679,2]
[312126178,1705654240388,-2865.72,0.00024859,2]
[312126180,1705654240418,-250.0,0.00024866,2]
[312126183,1705654240446,-162.86,0.00024871,2]
[312126186,1705654240469,-175.79,0.00024877,2]
[312126190,1705654240499,-1266.09,0.00024877,2]
[312126197,1705654240535,-158.74,0.00024883,10]
[312126202,1705654240560,-534.07785177,0.00025,2]
[312126205,1705654240575,-303.51189486,0.00025,2]
[312126208,1705654240592,-933.81243155,0.00025,2]
[312126211,1705654240613,-158.69157594,0.00025,2]
[312126214,1705654240637,-202.05640348,0.00025,2]
[312126215,1705654240663,-1584.35924632,0.00025,2]
[312126220,1705654240686,-167.40543921,0.00025,2]
[312126223,1705654240698,-1249.1438969,0.00025,2]
[312126224,1705654240721,-243.44,0.00025011,2]
[312126228,1705654240738,-500.0,0.00025047,2]
[312126230,1705654240756,-250.0,0.00025069,2]
[312126234,1705654240772,-154.90667774,0.00025115,2]
[312126238,1705654240798,-1000.0,0.00025189,2]
[312126241,1705654240831,-338.52,0.00025287,2]
[312126244,1705654240851,-158.85,0.0002542,2]
[312126246,1705654240869,-338.52,0.00025487,2]
[312126248,1705654240899,-157.43,0.00025507,2]
[312126249,1705654241160,-158.85,0.0002554,2]
[312126250,1705654241188,-399.51525025,0.00025595,2]
[312126251,1705654241205,-158.85,0.00025661,2]
[312126252,1705654241230,-338.52,0.00025687,2]
[312126253,1705654241251,-1015.27508866,0.00025714,2]
[312126254,1705654241271,-2865.72,0.00025779,2]
[312126255,1705654241287,-158.85,0.00025781,2]
[312126256,1705654241317,-338.52,0.00025886,2]
[312126257,1705654241354,-158.85,0.00025902,2]
[312126258,1705654241374,-154.90667774,0.00025969,2]
[312126259,1705654241394,-243.44,0.0002599,2]
[312126260,1705654241423,-3190.09672447,0.00025999,2]
[312126261,1705654241438,-650.0,0.00026,3]
[312126262,1705654241456,-650.0,0.00026,2]
[312126263,1705654241471,-500.0,0.00026,2]
[312126264,1705654241499,-214.59109204,0.00026,2]
[312126265,1705654241518,-214.59109204,0.00026,2]
[312126266,1705654241535,-214.59109204,0.00026,2]
[312126267,1705654241560,-214.59109204,0.00026,2]
[312126268,1705654241589,-214.59109204,0.00026,2]
[312126269,1705654241602,-214.59109204,0.00026,2]
[312126270,1705654241615,-214.59109204,0.00026,2]
[312126271,1705654241639,-214.59109204,0.00026,2]
[312126272,1705654241666,-214.59109204,0.00026,2]
[312126273,1705654241688,-214.59109204,0.00026,2]
[312126274,1705654241707,-214.59109204,0.00026,2]
[312126275,1705654241728,-214.59109204,0.00026,2]
[312126276,1705654241748,-214.59109204,0.00026,2]
[312126277,1705654241767,-214.59109204,0.00026,2]
[312126278,1705654241794,-214.59109204,0.00026,2]
[312126279,1705654241817,-214.59109204,0.00026,2]
[312126280,1705654241834,-214.59109204,0.00026,2]
[312126281,1705654241849,-214.59109204,0.00026,2]
[312126282,1705654241863,-214.59109204,0.00026,2]
[312126283,1705654241888,-214.59109204,0.00026,2]
[312126284,1705654241914,-214.59109204,0.00026,2]
[312126285,1705654241928,-214.59109204,0.00026,2]
[312126286,1705654241952,-214.59109204,0.00026,2]
[312126287,1705654241970,-214.59109204,0.00026,2]
[312126288,1705654241993,-214.59109204,0.00026,2]
[312126289,1705654242008,-214.59109204,0.00026,2]
[312126290,1705654242037,-214.59109204,0.00026,2]
[312126291,1705654242050,-214.59109204,0.00026,2]
[312126292,1705654242069,-214.59109204,0.00026,2]
[312126293,1705654242085,-214.59109204,0.00026,2]
[312126294,1705654242103,-214.59109204,0.00026,2]
[312126295,1705654242123,-214.59109204,0.00026,2]
[312126296,1705654242137,-214.59109204,0.00026,2]
[312126297,1705654242158,-214.59109204,0.00026,2]
[312126298,1705654242178,-214.59109204,0.00026,2]
[312126299,1705654242203,-214.59109204,0.00026,2]
[312126300,1705654242228,-214.59109204,0.00026,2]
[312126303,1705654242253,-214.59109204,0.00026,2]
[312126304,1705654242278,-214.59109204,0.00026,2]
[312126307,1705654242310,-214.59109204,0.00026,2]
[312126308,1705654242326,-214.59109204,0.00026,2]
[312126309,1705654242345,-214.59109204,0.00026,2]
[312126310,1705654242360,-214.59109204,0.00026,2]
[312126311,1705654242391,-214.59109204,0.00026,2]
[312126312,1705654242413,-214.59109204,0.00026,2]
[312126313,1705654242439,-214.59109204,0.00026,2]
[312126314,1705654242459,-214.59109204,0.00026,2]
[312126315,1705654242486,-214.59109204,0.00026,2]
[312126316,1705654242503,-214.59109204,0.00026,2]
[312126317,1705654242542,-214.59109204,0.00026,2]
[312126318,1705654242567,-214.59109204,0.00026,2]
[312126319,1705654242588,-214.59109204,0.00026,2]
[312126320,1705654242619,-214.59109204,0.00026,2]
[312126322,1705654242648,-214.59109204,0.00026,2]
[312126324,1705654242675,-214.59109204,0.00026,2]
[312126325,1705654242689,-214.59109204,0.00026,2]
[312126327,1705654242717,-214.59109204,0.00026,2]
[312126329,1705654242743,-214.59109204,0.00026,2]
[312126330,1705654242760,-214.59109204,0.00026,2]
[312126331,1705654242779,-214.59109204,0.00026,2]
[312126332,1705654242798,-214.59109204,0.00026,2]
[312126333,1705654242816,-214.59109204,0.00026,2]
[312126334,1705654242837,-214.59109204,0.00026,2]
[312126336,1705654242853,-214.59109204,0.00026,2]